bitfinex-derivatives/quotes_BTCF0:USTF0_20240814
["timestamp","ask_amount","ask_price","bid_price","bid_amount"]
[1723615861638,0.067532,60817.0,60810.0,0.057538]
[1723615862637,0.09781745,60814.0,60806.0,0.36276253]
[1723615862934,0.08142198,60809.0,60807.0,0.057541]
[1723615863134,0.08142198,60809.0,60808.0,0.05754]
[1723615863537,0.08142198,60810.0,60808.0,0.05754]
[1723615864546,0.08142198,60811.0,60808.0,0.05754]
[1723615865148,0.08142198,60810.0,60808.0,0.05754]
[1723615866149,0.08142198,60811.0,60808.0,0.05754]
[1723615866651,0.08142198,60811.0,60810.0,0.001]
[1723615867541,0.08142198,60811.0,60808.0,0.05754]
[1723615867942,0.08142198,60811.0,60810.0,0.3608]
[1723615870653,0.057532,60817.0,60810.0,0.3608]
[1723615870848,0.107532,60817.0,60810.0,0.3608]
[1723615872153,0.027,60811.0,60810.0,0.3618]
[1723615872354,0.027,60811.0,60810.0,0.419338]
[1723615873050,0.0053549,60811.0,60810.0,1.767258]
[1723615873249,0.06516328,60829.0,60822.0,0.057527]
[1723615873449,0.06516328,60832.0,60828.0,0.3608]
[1723615873642,0.01,60832.0,60828.0,0.3608]
[1723615874346,0.01,60832.0,60828.0,0.418321]
[1723615875054,0.3608,60835.0,60828.0,0.418321]
[1723615875256,0.3708,60835.0,60828.0,0.418321]
[1723615877354,0.3708,60835.0,60829.0,0.2846]
[1723615877550,0.0266349,60834.0,60829.0,0.2846]
[1723615877755,0.09781745,60832.0,60829.0,0.2846]
[1723615878159,0.09781745,60832.0,60829.0,0.34212]
[1723615878559,0.12445235,60831.0,60830.0,0.057519]
[1723615878755,0.0266349,60831.0,60829.0,0.28458001]
[1723615878953,0.0266349,60830.0,60829.0,0.34210001]
[1723615879150,0.09781745,60833.0,60830.0,0.057519]
[1723615879552,0.12445235,60832.0,60830.0,0.057519]
[1723615879752,0.0266349,60831.0,60830.0,0.057519]
[1723615879959,0.0266349,60831.0,60829.0,0.28458001]
[1723615880155,0.0266349,60830.0,60829.0,0.28458001]
[1723615880368,0.3608,60830.0,60828.0,0.01009882]
[1723615880566,0.0266349,60829.0,60824.0,0.00024673]
[1723615880862,0.0977642,60827.0,60824.0,0.00024673]
[1723615881456,0.0977642,60827.0,60824.0,0.01039566]
[1723615881658,0.0977642,60827.0,60824.0,0.00024673]
[1723615881857,0.1243991,60827.0,60826.0,0.057523]
[1723615882054,0.0977642,60827.0,60826.0,0.057523]
[1723615882876,0.0977642,60827.0,60826.0,0.342123]
[1723615883070,0.02663743,60827.0,60826.0,0.342123]
[1723615883472,0.0977642,60830.0,60828.0,0.057521]
[1723615883677,0.0977642,60830.0,60828.0,0.418321]
[1723615885074,0.057524,60825.0,60810.0,0.001]
[1723615885279,0.057524,60825.0,60813.0,0.01032285]
[1723615885280,0.3608,60818.0,60813.0,0.01032285]
[1723615885480,0.44496621,60818.0,60810.0,0.001]
[1723615885686,0.418331,60818.0,60810.0,0.001]
[1723615885983,0.418331,60818.0,60812.0,0.01016485]
[1723615886778,0.06519254,60821.0,60816.0,0.057533]
[1723615886779,0.057528,60821.0,60816.0,0.057533]
[1723615886973,0.057527,60823.0,60816.0,0.057533]
[1723615886974,0.12271954,60823.0,60818.0,0.3608]
[1723615887178,0.057527,60823.0,60818.0,0.3608]
[1723615887380,0.05753,60819.0,60818.0,0.3608]
[1723615887785,0.05753,60819.0,60812.0,0.37096485]
[1723615887786,0.057535,60813.0,60812.0,0.3608]
[1723615890485,0.06519254,60818.0,60812.0,0.418336]
[1723615890486,0.057531,60818.0,60812.0,0.418336]
[1723615891186,0.057531,60818.0,60812.0,0.3608]
[1723615892181,0.057531,60818.0,60814.0,0.057534]
[1723615893583,0.418331,60818.0,60814.0,0.057534]
[1723615894287,0.057533,60816.0,60811.0,0.00024673]
[1723615895083,0.3608,60812.0,60811.0,0.04936993]
[1723615895287,0.3608,60812.0,60811.0,0.00024673]
[1723615895288,0.418336,60812.0,60811.0,0.00024673]
[1723615895486,0.911656,60812.0,60811.0,0.00024673]
[1723615895790,0.85412,60812.0,60811.0,0.00024673]
[1723615896198,0.85412,60812.0,60811.0,0.00624673]
[1723615896396,0.3608,60812.0,60811.0,0.00624673]
[1723615897787,0.3608,60812.0,60811.0,0.00124673]
[1723615897993,0.3608,60814.0,60811.0,0.00124673]
[1723615898296,0.418335,60814.0,60811.0,0.00124673]
[1723615898486,0.418335,60814.0,60811.0,0.00024673]
[1723615899696,0.057536,60812.0,60811.0,0.00024673]
[1723615900200,0.057536,60812.0,60811.0,0.00424673]
[1723615901496,0.057536,60812.0,60811.0,0.00024673]
[1723615909208,0.3608,60814.0,60811.0,0.00024673]
[1723615910109,0.3608,60814.0,60812.0,0.057536]
[1723615910610,0.3608,60814.0,60811.0,0.00024673]
[1723615911312,0.3608,60814.0,60813.0,0.057535]
[1723615911902,0.3608,60814.0,60813.0,0.141035]
[1723615912306,0.3608,60814.0,60813.0,0.0835]
[1723615913609,0.06519254,60817.0,60813.0,0.501835]
[1723615913816,0.06519254,60819.0,60814.0,0.1066582]
[1723615914007,0.06519254,60820.0,60815.0,0.2846]
[1723615914207,0.06519254,60820.0,60815.0,0.3337232]
[1723615914403,0.06519254,60819.0,60817.0,0.0491232]
[1723615914603,0.06519254,60819.0,60818.0,0.41817163]
[1723615914813,0.06519254,60820.0,60818.0,0.4099232]
[1723615915609,0.06519254,60821.0,60818.0,0.3608]
[1723615916300,0.06519254,60822.0,60819.0,0.0491232]
[1723615916505,0.06519254,60823.0,60820.0,0.0491232]
[1723615916701,0.06543927,60824.0,60820.0,0.0491232]
[1723615917210,0.06543927,60824.0,60821.0,0.06576821]
[1723615917406,0.00024673,60824.0,60823.0,0.418326]
[1723615917611,0.06519254,60831.0,60828.0,0.057521]
[1723615917813,0.06519254,60831.0,60829.0,0.0854]
[1723615918110,0.057514,60836.0,60829.0,0.0854]
[1723615918111,0.06519254,60832.0,60829.0,0.0854]
[1723615918614,0.13900468,60836.0,60829.0,0.0854]
[1723615918615,0.06519254,60833.0,60829.0,0.0854]
[1723615918804,0.06519254,60833.0,60830.0,0.0825]
[1723615919515,0.06519254,60834.0,60830.0,0.0825]
[1723615920717,0.06519254,60834.0,60830.0,0.0835]
[1723615921312,0.06519254,60835.0,60830.0,0.0835]
[1723615922109,0.3608,60831.0,60830.0,0.001]
[1723615922413,0.3608,60831.0,60830.0,0.00081477]
[1723615922414,0.418318,60831.0,60830.0,0.00081477]
[1723615922719,0.418318,60831.0,60830.0,0.06071477]
[1723615922920,0.418318,60831.0,60830.0,0.0609]
[1723615923107,0.12270754,60836.0,60830.0,0.0609]
[1723615923314,0.13270754,60836.0,60830.0,0.0609]
[1723615923526,0.067515,60836.0,60830.0,0.0609]
[1723615924110,0.067515,60836.0,60830.0,0.118419]
[1723615925212,0.057515,60835.0,60830.0,0.118419]
[1723615925914,0.057515,60835.0,60830.0,0.0609]
[1723615926508,0.067515,60835.0,60830.0,0.0609]
[1723615926910,0.067515,60835.0,60830.0,0.118419]
[1723615928525,0.067515,60835.0,60833.0,0.2846]
[1723615928526,0.01,60835.0,60833.0,0.2846]
[1723615928722,0.01,60835.0,60834.0,0.146616]
[1723615929117,0.01,60835.0,60834.0,0.597416]
[1723615929720,0.057507,60843.0,60835.0,0.057514]
[1723615930025,0.147507,60843.0,60836.0,0.0895]
[1723615930220,0.09,60843.0,60836.0,0.0895]
[1723615930417,0.09,60843.0,60839.0,0.6454]
[1723615930721,0.43623149,60851.0,60841.0,0.057509]
[1723615930918,0.06519254,60849.0,60841.0,0.057509]
[1723615931117,0.06519254,60849.0,60842.0,0.057508]
[1723615931118,0.10519254,60849.0,60842.0,0.057508]
[1723615931321,0.10519254,60849.0,60839.0,0.6454]
[1723615931322,0.04,60849.0,60839.0,0.6454]
[1723615931622,0.00232,60851.0,60848.0,0.6454]
[1723615931917,0.3608,60862.0,60851.0,0.057499]
[1723615931918,0.48348254,60862.0,60851.0,0.057499]
[1723615932226,0.48348254,60862.0,60854.0,0.3608]
[1723615932227,0.4008,60862.0,60854.0,0.3608]
[1723615932430,0.4008,60862.0,60854.0,0.478197]
[1723615932724,0.3608,60862.0,60854.0,0.478197]
[1723615933225,0.3608,60862.0,60856.0,0.2846]
[1723615933420,0.00228,60870.0,60861.0,0.41829]
[1723615933615,0.00228,60870.0,60866.0,0.3608]
[1723615933814,0.12267054,60874.0,60866.0,0.3608]
[1723615933815,0.057478,60874.0,60866.0,0.3608]
[1723615934016,0.077478,60874.0,60866.0,0.3608]
[1723615934413,0.057481,60872.0,60861.0,0.70289]
[1723615934621,0.057481,60872.0,60861.0,0.65572841]
[1723615935023,0.057481,60872.0,60864.0,0.057487]
[1723615935323,0.3268,60876.0,60865.0,0.057486]
[1723615935517,0.06,60876.0,60865.0,0.057486]
[1723615936119,0.06,60876.0,60866.0,0.001]
[1723615936629,0.06,60876.0,60865.0,0.057486]
[1723615936824,0.06,60876.0,60864.0,0.00024652]
[1723615936825,0.06,60876.0,60818.0,0.13088377]
[1723615937025,0.13727706,60785.0,60784.0,0.06522585]
[1723615937235,0.13727706,60785.0,60772.0,0.09783878]
[1723615937236,0.057573,60774.0,60772.0,0.09783878]
[1723615937437,0.057574,60772.0,60761.0,0.00011739]
[1723615937625,0.7216,60762.0,60761.0,0.00011739]
[1723615937821,0.779184,60762.0,60761.0,0.00011739]
[1723615938019,0.779184,60762.0,60743.0,0.00805413]
[1723615938020,1.1216,60762.0,60743.0,0.00805413]
[1723615938227,0.3608,60745.0,60739.0,0.3556]
[1723615938731,0.3608,60745.0,60740.0,0.057604]
[1723615939031,0.00011739,60744.0,60740.0,0.057604]
[1723615939228,0.00011739,60744.0,60739.0,0.3556]
[1723615939618,0.3608,60752.0,60743.0,0.3608]
[1723615939824,0.3608,60761.0,60751.0,0.3556]
[1723615940023,0.3608,60761.0,60759.0,0.3556]
[1723615940231,0.3608,60761.0,60760.0,0.2302]
[1723615942227,0.3648,60761.0,60760.0,0.2302]
[1723615947728,0.3608,60761.0,60760.0,0.2302]
[1723615947922,0.3638,60761.0,60760.0,0.2302]
[1723615950523,0.3628,60761.0,60760.0,0.2302]
[1723615952334,0.3608,60764.0,60760.0,0.2302]
[1723615952528,0.3608,60764.0,60754.0,0.00024677]
[1723615952529,0.057588,60758.0,60757.0,0.3608]
[1723615952728,0.7264,60758.0,60745.0,0.00999573]
[1723615952935,0.057603,60742.0,60736.0,0.3608]
[1723615953230,0.057607,60737.0,60736.0,0.3608]
[1723615953735,0.418398,60747.0,60736.0,0.418408]
[1723615953929,0.0576,60745.0,60742.0,0.3608]
[1723615954129,0.057601,60744.0,60742.0,0.3608]
[1723615954330,0.05784877,60743.0,60742.0,0.3608]
[1723615954936,0.05784877,60743.0,60736.0,0.3608]
[1723615954937,0.057604,60741.0,60736.0,0.3608]
[1723615955130,0.00024677,60743.0,60736.0,0.3608]
[1723615955438,0.057607,60737.0,60736.0,0.3608]
[1723615957531,0.057603,60742.0,60736.0,0.3608]
[1723615957844,0.115207,60742.0,60736.0,0.3608]
[1723615958137,0.115207,60742.0,60735.0,0.3608]
[1723615958138,0.057603,60742.0,60735.0,0.3608]
[1723615958736,0.057603,60742.0,60736.0,0.014]
[1723615959534,0.058603,60742.0,60736.0,0.014]
[1723615959733,0.057603,60742.0,60735.0,0.3608]
[1723615960136,0.058603,60742.0,60735.0,0.3748]
[1723615960335,0.001,60742.0,60740.0,0.3608]
[1723615961335,0.001,60742.0,60741.0,0.057604]
[1723615962132,0.00024677,60743.0,60741.0,0.057604]
[1723615962324,0.00024677,60743.0,60740.0,0.3608]
[1723615962325,0.00024677,60743.0,60742.0,0.057603]
[1723615965931,0.00024677,60743.0,60742.0,0.06797403]
[1723615966837,0.00024677,60743.0,60742.0,0.03853134]
[1723615967242,0.03539886,60743.0,60742.0,0.03853134]
[1723615967437,0.03539886,60743.0,60740.0,0.35817215]
[1723615967642,0.08129097,60741.0,60740.0,0.42607899]
[1723615968037,0.00024677,60743.0,60740.0,0.42607899]
[1723615968038,0.00024677,60743.0,60740.0,0.36847399]
[1723615968241,0.0317277,60742.0,60741.0,0.057604]
[1723615969339,0.0317277,60742.0,60740.0,0.37647399]
[1723615969841,0.0317277,60742.0,60740.0,0.36847399]
[1723615970048,0.0317277,60742.0,60741.0,0.007]
[1723615971633,0.12952427,60742.0,60741.0,0.007]
[1723615972043,0.0317277,60742.0,60741.0,0.007]
[1723615972237,0.12952427,60742.0,60741.0,0.007]
[1723615972439,0.12952427,60742.0,60740.0,0.36847399]
[1723615972648,0.12952427,60741.0,60740.0,0.37647399]
[1723615972939,0.12933464,60741.0,60740.0,0.37647399]
[1723615973135,0.03153807,60741.0,60740.0,0.37647399]
[1723615973639,0.03153807,60741.0,60740.0,0.42607899]
[1723615974038,0.00024677,60743.0,60741.0,0.057604]
[1723615974240,0.03145548,60742.0,60741.0,0.057604]
[1723615975148,0.09779657,60742.0,60741.0,0.141804]
[1723615975345,0.12925205,60742.0,60741.0,0.141804]
[1723615976056,0.03145548,60742.0,60741.0,0.141804]
[1723615976734,0.00024677,60743.0,60742.0,0.057603]
[1723615976935,0.08134901,60746.0,60742.0,0.66388]
[1723615977134,0.08134901,60746.0,60745.0,0.6453]
[1723615977345,0.08134901,60747.0,60746.0,0.057599]
[1723615977735,0.08134901,60747.0,60746.0,0.551439]
[1723615977940,0.08134901,60750.0,60746.0,0.551439]
[1723615978143,0.057591,60755.0,60745.0,0.6453]
[1723615978144,0.08134901,60749.0,60747.0,0.057598]
[1723615979144,0.08134901,60748.0,60747.0,0.057598]
[1723615980134,0.057591,60755.0,60748.0,0.057597]
[1723615980135,0.09779657,60752.0,60748.0,0.057597]
[1723615980339,0.09779657,60752.0,60751.0,0.3608]
[1723615981141,0.02801067,60752.0,60751.0,0.3608]
[1723615981334,0.09779975,60752.0,60751.0,0.3608]
[1723615981539,0.02801067,60752.0,60751.0,0.3608]
[1723615981738,0.0977988,60752.0,60751.0,0.3608]
[1723615982144,0.02801067,60752.0,60751.0,0.3608]
[1723615982348,0.02801067,60754.0,60751.0,0.3608]
[1723615982551,0.02801067,60753.0,60751.0,0.3608]
[1723615982739,0.02801067,60752.0,60751.0,0.3608]
[1723615983347,0.13011473,60752.0,60751.0,0.3608]
[1723615983940,0.10210406,60752.0,60751.0,0.3608]
[1723615984342,0.10210406,60752.0,60751.0,0.3638]
[1723615984547,0.13011473,60752.0,60751.0,0.3638]
[1723615985346,0.13006417,60752.0,60751.0,0.3658]
[1723615985552,0.1020614,60752.0,60751.0,0.3658]
[1723615985749,0.02800277,60752.0,60751.0,0.3658]
[1723615985938,0.1596544,60752.0,60751.0,0.3658]
[1723615986140,0.18765717,60752.0,60751.0,0.3658]
[1723615990053,0.18782344,60752.0,60751.0,0.3658]
[1723615991055,0.08563353,60752.0,60751.0,0.3658]
[1723615992548,0.08563353,60752.0,60751.0,0.3608]
[1723615992853,0.057593,60752.0,60751.0,0.3608]
[1723615993046,0.061593,60752.0,60751.0,0.3608]
[1723615994457,0.004,60752.0,60751.0,0.3608]
[1723615995254,0.06930844,60752.0,60751.0,0.3608]
[1723615995653,0.06630844,60752.0,60751.0,0.3608]
[1723615996753,0.06530844,60752.0,60751.0,0.3608]
[1723615998851,0.057594,60751.0,60746.0,0.23048]
[1723615999053,0.0653041,60749.0,60746.0,0.23048]
[1723615999246,0.0753041,60749.0,60746.0,0.23048]
[1723616001656,0.0753041,60749.0,60746.0,0.288078]
[1723616002251,0.0653041,60748.0,60746.0,0.288078]
[1723616003959,0.0653041,60748.0,60746.0,0.292078]
[1723616004160,0.0653041,60747.0,60746.0,0.292078]
[1723616006060,0.08163518,60749.0,60746.0,0.292078]
[1723616006253,0.057594,60751.0,60746.0,0.292078]
[1723616006254,0.08163518,60748.0,60746.0,0.288078]
[1723616006759,0.08163518,60748.0,60746.0,0.292078]
[1723616008265,0.08163518,60748.0,60746.0,0.23448]
[1723616008457,0.08163518,60748.0,60746.0,0.004]
[1723616009164,0.057604,60741.0,60735.0,0.06556391]
[1723616009461,0.057604,60741.0,60732.0,0.3608]
[1723616009462,0.02667646,60740.0,60732.0,0.3608]
[1723616009763,0.02667646,60740.0,60733.0,0.01269174]
[1723616010158,0.057606,60739.0,60733.0,0.01269174]
[1723616010354,0.13923095,60739.0,60733.0,0.01269174]
[1723616010560,0.13923095,60739.0,60732.0,0.3608]
[1723616010966,0.13923095,60739.0,60733.0,0.00024677]
[1723616011358,0.057606,60739.0,60733.0,0.00024677]
[1723616013868,0.061606,60739.0,60733.0,0.00024677]
[1723616014270,0.061606,60739.0,60733.0,0.05785777]
[1723616014466,0.057606,60739.0,60733.0,0.05785777]
[1723616015360,0.060606,60739.0,60733.0,0.05785777]
[1723616015560,0.060606,60739.0,60734.0,0.01302825]
[1723616017263,0.003,60739.0,60736.0,0.057608]
[1723616018164,0.003,60739.0,60734.0,0.01302825]
[1723616018670,0.003,60739.0,60733.0,0.00024677]
[1723616018969,0.060606,60739.0,60733.0,0.00024677]
[1723616019367,0.057606,60739.0,60733.0,0.00024677]
[1723616019869,1.36472,60739.0,60733.0,0.00024677]
[1723616020168,0.06524662,60734.0,60733.0,0.00024677]
[1723616020367,0.82841,60734.0,60733.0,0.00019984]
[1723616020565,1.32237,60734.0,60733.0,0.00019984]
[1723616020869,1.40399495,60734.0,60733.0,0.00019984]
[1723616021086,1.72209,60734.0,60733.0,8.4e-07]
[1723616021262,1.72209,60734.0,60713.0,0.00016331]
[1723616021263,0.057619,60725.0,60713.0,0.00016331]
[1723616021463,0.06508576,60724.0,60713.0,0.05779331]
[1723616021763,0.06508576,60724.0,60713.0,0.00016331]
[1723616022367,0.42588576,60725.0,60713.0,0.00016331]
[1723616022674,0.057626,60718.0,60713.0,0.00016331]
[1723616023966,0.057627,60717.0,60713.0,0.00016331]
[1723616024165,0.057627,60717.0,60714.0,0.00842998]
[1723616025276,0.001,60724.0,60716.0,0.3608]
[1723616025579,0.00024698,60725.0,60722.0,0.3608]
[1723616026378,0.057621,60723.0,60722.0,0.3608]
[1723616029372,0.006,60723.0,60722.0,0.419422]
[1723616030272,0.00024698,60725.0,60722.0,0.418422]
[1723616030878,0.00024698,60725.0,60723.0,0.05762]
[1723616031781,0.00024698,60725.0,60724.0,0.05762]
[1723616035273,0.00024698,60725.0,60724.0,0.41842]
[1723616036472,0.00124698,60725.0,60724.0,0.06662]
[1723616036673,0.00124698,60725.0,60724.0,0.42742]
[1723616038274,0.00124698,60725.0,60724.0,0.41842]
[1723616038780,0.00124698,60725.0,60724.0,0.42542]
[1723616039373,0.00024698,60725.0,60724.0,0.41842]
[1723616039978,0.00024698,60725.0,60724.0,0.42242]
[1723616040380,0.00424698,60725.0,60724.0,0.42242]
[1723616048389,0.00424698,60725.0,60724.0,0.06162]
[1723616048592,0.00424698,60725.0,60724.0,0.42242]
[1723616049485,0.00424698,60725.0,60724.0,0.48798391]
[1723616051588,0.06508576,60732.0,60728.0,0.057616]
[1723616051789,0.06508576,60732.0,60731.0,0.3608]
[1723616051985,0.06508576,60733.0,60731.0,0.3608]
[1723616052988,0.12269576,60734.0,60731.0,0.3608]
[1723616053386,0.008,60732.0,60731.0,0.3608]
[1723616053788,0.06508576,60733.0,60731.0,0.3608]
[1723616054193,0.12269576,60734.0,60731.0,0.3608]
[1723616054390,0.07608576,60733.0,60731.0,0.3618]
[1723616055395,0.08008576,60733.0,60731.0,0.3618]
[1723616056193,0.08008576,60733.0,60731.0,0.3747041]
[1723616056394,0.06508576,60732.0,60731.0,0.3747041]
[1723616056987,0.06908576,60733.0,60732.0,0.057612]
[1723616058401,0.004,60733.0,60732.0,0.057612]
[1723616059090,0.004,60733.0,60732.0,0.0493395]
[1723616059297,0.011,60733.0,60732.0,0.001]
[1723616059990,0.011,60733.0,60732.0,0.1148]
[1723616060395,0.007,60733.0,60732.0,0.1148]
[1723616060594,0.007,60733.0,60732.0,0.4756]
[1723616060797,0.064611,60733.0,60732.0,0.3618]
[1723616061296,0.065611,60733.0,60732.0,0.3618]
[1723616062089,0.14696821,60733.0,60732.0,0.3618]
[1723616062294,0.14696821,60733.0,60732.0,0.4756]
[1723616064300,0.14696821,60733.0,60732.0,0.3618]
[1723616064800,0.299411,60733.0,60732.0,0.3618]
[1723616065685,0.32609138,60733.0,60732.0,0.3618]
[1723616066391,0.38112062,60733.0,60732.0,0.3618]
[1723616067390,1.12324216,60733.0,60727.0,0.04935304]
[1723616067600,0.13932131,60728.0,60726.0,0.00024698]
[1723616067798,0.19550531,60727.0,60726.0,0.00024698]
[1723616068193,1.62051702,60727.0,60726.0,0.00024698]
[1723616068501,1.71853176,60727.0,60726.0,0.00024698]
[1723616068691,1.71853053,60727.0,60726.0,0.00024698]
[1723616069095,1.62051702,60727.0,60726.0,0.00024698]
[1723616069394,1.22051702,60727.0,60726.0,0.00024698]
[1723616069594,1.22151702,60727.0,60726.0,0.00624698]
[1723616070292,1.22651702,60727.0,60726.0,0.00624698]
[1723616071201,0.057625,60718.0,60717.0,0.3608]
[1723616073095,0.058625,60718.0,60717.0,0.3728]
[1723616073799,0.058625,60718.0,60717.0,0.3778]
[1723616076602,0.158625,60718.0,60717.0,0.3778]
[1723616079207,0.158625,60718.0,60717.0,0.017]
[1723616084911,0.158625,60718.0,60717.0,0.02969694]
[1723616085108,0.157625,60718.0,60717.0,0.006]
[1723616085505,0.157625,60718.0,60717.0,0.001]
[1723616086808,0.162625,60718.0,60717.0,0.001]
[1723616090813,0.22784061,60718.0,60717.0,0.001]
[1723616091013,0.162625,60718.0,60717.0,0.001]
[1723616093018,0.105,60718.0,60717.0,0.001]
[1723616093321,0.105,60718.0,60717.0,0.058626]
[1723616093918,0.105,60718.0,60717.0,0.001]
[1723616097519,0.105,60718.0,60717.0,0.2262]
[1723616098220,0.18659555,60718.0,60717.0,0.2262]
[1723616098611,0.105,60718.0,60717.0,0.2262]
[1723616098919,0.18659555,60718.0,60717.0,0.2262]
[1723616100517,0.105,60718.0,60717.0,0.283826]
[1723616100826,0.005,60718.0,60717.0,1.177906]
[1723616101211,0.005,60718.0,60717.0,1.25977567]
[1723616101627,0.005,60718.0,60717.0,1.177906]
[1723616102024,0.005,60718.0,60717.0,0.777906]
[1723616102221,0.005,60718.0,60717.0,0.2262]
[1723616102420,0.176425,60718.0,60717.0,0.05037]
[1723616102614,0.176425,60718.0,60717.0,0.001]
[1723616103429,0.062625,60718.0,60717.0,0.001]
[1723616104723,0.062625,60718.0,60717.0,0.1148]
[1723616104921,0.005,60718.0,60717.0,0.1148]
[1723616105925,0.005,60718.0,60717.0,0.001]
[1723616107216,0.07037772,60718.0,60717.0,0.1244504]
[1723616107423,0.005,60718.0,60717.0,0.058626]
[1723616109216,0.005,60718.0,60717.0,0.952706]
[1723616109428,0.00024698,60724.0,60717.0,1.47052689]
[1723616109622,0.00024698,60724.0,60723.0,0.42657441]
[1723616109825,0.00024698,60724.0,60723.0,0.92061441]
[1723616110228,0.00024698,60724.0,60723.0,0.97823541]
[1723616110528,0.00024698,60724.0,60723.0,0.912461]
[1723616110728,0.00024698,60724.0,60723.0,0.97823541]
[1723616110917,0.06537772,60731.0,60728.0,0.057615]
[1723616111133,0.06537772,60731.0,60729.0,0.3608]
[1723616112428,0.18537772,60731.0,60729.0,0.3608]
[1723616113529,0.12,60731.0,60730.0,0.057614]
[1723616114024,0.0656247,60736.0,60729.0,0.3608]
[1723616114025,0.00024698,60736.0,60729.0,0.3608]
[1723616114229,0.00024698,60736.0,60735.0,0.3608]
[1723616114831,0.00024698,60736.0,60735.0,0.418409]
[1723616115434,0.00024698,60736.0,60735.0,0.912369]
[1723616115733,0.06537772,60747.0,60740.0,0.057604]
[1723616116033,0.06537772,60747.0,60743.0,0.3608]
[1723616116222,0.12297572,60748.0,60743.0,0.3608]
[1723616116424,0.057598,60748.0,60743.0,0.3608]
[1723616117629,0.057598,60747.0,60743.0,0.3608]
[1723616117830,0.06537772,60749.0,60743.0,0.3608]
[1723616118026,0.06537772,60746.0,60739.0,0.00024698]
[1723616118229,0.057603,60742.0,60739.0,0.00024698]
[1723616118929,0.057605,60740.0,60739.0,0.00024698]
[1723616120424,0.057613,60731.0,60728.0,0.59136]
[1723616122526,0.065613,60731.0,60728.0,0.59236]
[1723616123330,0.008,60731.0,60728.0,0.59236]
[1723616123835,0.01,60731.0,60728.0,0.59236]
[1723616130354,0.01,60731.0,60728.0,0.3618]
[1723616131143,0.01,60731.0,60730.0,0.057614]
[1723616132346,0.01,60731.0,60730.0,0.551614]
[1723616132744,0.008,60731.0,60730.0,0.551614]
[1723616132949,0.012,60731.0,60730.0,0.551614]
[1723616133648,0.004,60731.0,60730.0,0.057614]
[1723616136548,0.004,60731.0,60730.0,0.1068797]
[1723616137655,0.004,60731.0,60730.0,0.057614]
[1723616137955,0.004,60731.0,60730.0,0.551614]
[1723616138354,0.004,60731.0,60730.0,0.951614]
[1723616138546,0.00024698,60736.0,60730.0,0.951614]
[1723616138547,0.00024698,60736.0,60735.0,0.057606]
[1723616138748,0.12024698,60736.0,60735.0,0.418406]
[1723616140656,0.00024698,60736.0,60735.0,0.418406]
[1723616141259,0.02324698,60736.0,60735.0,0.43232333]
[1723616144356,0.02324698,60736.0,60735.0,0.49806257]
[1723616144551,0.02324698,60736.0,60735.0,0.43232333]
[1723616145559,0.02324698,60736.0,60735.0,0.49806257]
[1723616145858,0.12297372,60743.0,60739.0,0.057599]
[1723616146063,0.12,60743.0,60740.0,0.2241]
[1723616146256,0.06537772,60744.0,60740.0,0.281698]
[1723616146454,0.06537772,60744.0,60741.0,0.057597]
[1723616147056,0.06537772,60744.0,60743.0,0.057596]
[1723616147260,0.06528981,60745.0,60743.0,0.6454]
[1723616147460,0.06528981,60747.0,60745.0,0.057594]
[1723616147764,0.057586,60753.0,60746.0,0.1068932]
[1723616147765,0.06528981,60750.0,60746.0,0.1068932]
[1723616148063,0.17528981,60750.0,60746.0,0.1068932]
[1723616148255,0.17528981,60750.0,60747.0,0.0493002]
[1723616148457,0.17528981,60750.0,60748.0,0.00827763]
[1723616148762,0.11,60750.0,60747.0,0.057592]
[1723616148964,0.11,60750.0,60747.0,0.06583423]
[1723616149152,0.11,60750.0,60748.0,0.52789]
[1723616149558,0.06526539,60749.0,60748.0,0.52789]
[1723616149763,0.17526539,60749.0,60748.0,0.52789]
[1723616150061,0.06526539,60749.0,60748.0,0.52789]
[1723616150463,0.06526539,60750.0,60748.0,0.52789]
[1723616150653,0.18526539,60750.0,60748.0,0.52789]
[1723616150857,0.18526539,60750.0,60748.0,0.52889]
[1723616151366,0.06526539,60750.0,60748.0,0.52889]
[1723616151566,0.11,60750.0,60748.0,0.52889]
[1723616152268,0.113,60750.0,60748.0,0.52889]
[1723616152969,0.113,60750.0,60748.0,0.16709]
[1723616153267,0.11,60750.0,60748.0,0.17609]
[1723616153963,0.11,60750.0,60748.0,0.17709]
[1723616154463,0.11,60750.0,60748.0,0.17909]
[1723616155360,0.11,60750.0,60748.0,0.012]
[1723616156158,0.05759,60749.0,60748.0,0.012]
[1723616156364,0.18759,60749.0,60748.0,0.012]
[1723616157362,0.18759,60749.0,60748.0,0.009]
[1723616158568,0.18759,60749.0,60748.0,0.011]
[1723616160260,0.24518,60749.0,60748.0,0.009]
[1723616160571,0.057598,60740.0,60739.0,0.59132]
[1723616160871,0.057598,60740.0,60739.0,0.60348055]
[1723616162071,0.067598,60740.0,60739.0,0.60348055]
[1723616163564,0.067598,60740.0,60739.0,0.60548055]
[1723616163758,0.067598,60740.0,60739.0,0.61048055]
[1723616164468,0.067598,60740.0,60739.0,0.60848055]
[1723616164469,0.057598,60740.0,60739.0,0.60848055]
[1723616164769,0.057598,60740.0,60739.0,0.60748055]
[1723616166074,0.07734644,60748.0,60739.0,0.65678075]
[1723616166371,0.06526018,60751.0,60747.0,0.3608]
[1723616166668,0.057588,60751.0,60748.0,0.108]
[1723616167263,0.06526018,60753.0,60748.0,0.108]
[1723616167470,0.05759,60749.0,60748.0,0.108]
[1723616168466,0.06526018,60752.0,60748.0,0.1573002]
[1723616170273,0.06526018,60752.0,60751.0,0.2846]
[1723616170470,0.06526018,60754.0,60752.0,0.057587]
[1723616170674,0.12284418,60755.0,60751.0,0.3339002]
[1723616170875,0.24284418,60755.0,60751.0,0.0493002]
[1723616171672,0.18526018,60755.0,60751.0,0.0493002]
[1723616171875,0.18526018,60755.0,60748.0,0.12031512]
[1723616171876,0.06526018,60754.0,60752.0,0.04928397]